[Event "XIX Najdorf Memorial 2019"]
[Site "Warsaw"]
[Date "2019.07.14"]
[Round "9.11"]
[White "Menezes, Christoph"]
[Black "Janik, Igor"]
[Result "1/2-1/2"]
[ECO "A29"]
[WhiteElo "2413"]
[BlackElo "2495"]
[Annotator "ChessBase"]
[PlyCount "72"]
[EventDate "2019.07.06"]
[EventType "swiss"]
[EventCountry "POL"]
[SourceTitle "playchess.com"]
[Source "ChessBase"]
[SourceQuality "1"]
[TimeControl "40/5400+30:1800+30"]

1. c4 {[%emt 0:00:00]} e5 {[%emt 0:00:00]} 2. Nc3 {[%emt 0:00:00]} Nf6 {[%emt 0:00:00]} 3. Nf3 {[%emt 0:00:07]} Nc6 {[%emt 0:00:18]} 4. g3 {[%emt 0:00:21]} Bb4 {[%emt 0:00:32]} 5. Bg2 {[%emt 0:00:25]} O-O {[%emt 0:00:21]} 6. O-O {[%emt 0:00:36]} Re8 {[%emt 0:00:39]} 7. d3 {[%emt 0:02:25]} Bxc3 {[%emt 0:03:39]} 8. bxc3 {[%emt 0:00:04]} e4 {[%emt 0:00:07]} 9. Nd4 {[%emt 0:01:05]} Ne5 {[%emt 0:00:08]} 10. Bg5 {[%emt 0:02:50]} exd3 {[%emt 0:01:00]} 11. exd3 {[%emt 0:00:06]} d6 {[%emt 0:00:17]} 12. Rb1 {[%emt 0:05:45]} c5 {[%emt 0:09:05]} 13. Nc2 {[%emt 0:02:49]} Rb8 {[%emt 0:29:34]} 14. Ne3 {[%emt 0:08:23]} b6 {[%emt 0:02:13]} 15. d4 {[%emt 0:07:02]} Ng6 {[%emt 0:03:24]} 16. dxc5 {[%emt 0:07:26]} dxc5 {[%emt 0:00:10]} 17. Qa4 {[%emt 0:00:35]} Bb7 {[%emt 0:04:00]} 18. Bxf6 {[%emt 0:19:36]} gxf6 {[%emt 0:00:11]} 19. Bxb7 {[%emt 0:02:20]} Rxb7 {[%emt 0:01:05]} 20. Rbd1 {[%emt 0:01:10]} Qc8 {[%emt 0:01:03]} 21. Nd5 {[%emt 0:11:12]} Kg7 {[%emt 0:02:43]} 22. Qc2 {[%emt 0:05:01]} Qh3 {[%emt 0:04:27]} 23. f4 {[%emt 0:03:50]} h5 {[%emt 0:06:28]} 24. Rfe1 {[%emt 0:05:16]} Rbb8 {[%emt 0:01:41]} 25. Qg2 {[%emt 0:02:51]} Qg4 {[%emt 0:01:09]} 26. h3 {[%emt 0:00:35]} Rxe1+ {[%emt 0:03:05]} 27. Rxe1 {[%emt 0:00:04]} Qd7 {[%emt 0:00:04]} 28. g4 {[%emt 0:05:32]} hxg4 {[%emt 0:00:37]} 29. Qxg4 {[%emt 0:00:24]} f5 {[%emt 0:06:29]} 30. Qg5 {[%emt 0:00:17]} Re8 {[%emt 0:00:37]} 31. Rxe8 {[%emt 0:01:39]} Qxe8 {[%emt 0:00:01]} 32. Kf2 {[%emt 0:00:37]} Qe4 {[%emt 0:01:08]} 33. Qf6+ {[%emt 0:00:38]} Kf8 {[%emt 0:00:17]} 34. Qd6+ {[%emt 0:01:23]} Kg7 {[%emt 0:00:22]} 35. Qf6+ {[%emt 0:00:11]} Kf8 {[%emt 0:00:02]} 36. Qd6+ {[%emt 0:00:37]} Kg7 {[%emt 0:00:06]} 1/2-1/2

[Event "XIX Najdorf Memorial 2019"]
[Site "Warsaw"]
[Date "2019.07.14"]
[Round "9.11"]
[White "Zylka, Stanislaw"]
[Black "Sliwicki, Damian"]
[Result "1-0"]
[ECO "B31"]
[WhiteElo "2308"]
[BlackElo "2232"]
[Annotator "ChessBase"]
[PlyCount "127"]
[EventDate "2019.07.06"]
[EventType "swiss"]
[EventCountry "POL"]
[SourceTitle "playchess.com"]
[Source "ChessBase"]
[SourceQuality "1"]
[TimeControl "40/5400+30:1800+30"]

1. e4 {[%emt 0:01:42]} c5 {[%emt 0:00:01]} 2. Nf3 {[%emt 0:00:13]} Nc6 {[%emt 0:00:07]} 3. Bb5 {[%emt 0:00:11]} g6 {[%emt 0:00:05]} 4. Bxc6 {[%emt 0:00:47]} dxc6 {[%emt 0:00:09]} 5. d3 {[%emt 0:00:18]} Bg7 {[%emt 0:00:04]} 6. h3 {[%emt 0:00:12]} b6 {[%emt 0:00:06]} 7. Nc3 {[%emt 0:00:54]} Nf6 {[%emt 0:00:05]} 8. Be3 {[%emt 0:00:24]} Nd7 {[%emt 0:00:36]} 9. Qd2 {[%emt 0:00:28]} e5 {[%emt 0:02:30]} 10. a3 {[%emt 0:01:15]} Qe7 {[%emt 0:03:51]} 11. O-O {[%emt 0:01:59]} Nf8 {[%emt 0:03:01]} 12. b4 {[%emt 0:01:01]} cxb4 {[%emt 0:01:01]} 13. axb4 {[%emt 0:00:09]} Bb7 {[%emt 0:03:26]} 14. Ra4 {[%emt 0:03:09]} Nd7 {[%emt 0:06:27]} 15. b5 {[%emt 0:18:28]} O-O {[%emt 0:07:12]} 16. Rfa1 {[%emt 0:05:55]} cxb5 {[%emt 0:02:41]} 17. Rxa7 {[%emt 0:02:30]} b4 {[%emt 0:01:59]} 18. Rxa8 {[%emt 0:10:23]} Bxa8 {[%emt 0:02:10]} 19. Na2 {[%emt 0:01:21]} f5 {[%emt 0:00:35]} 20. Qxb4 {[%emt 0:07:06]} Qxb4 {[%emt 0:05:03]} 21. Nxb4 {[%emt 0:00:08]} fxe4 {[%emt 0:01:37]} 22. Ng5 {[%emt 0:03:03]} Nc5 {[%emt 0:09:02]} 23. dxe4 {[%emt 0:20:29]} Bb7 {[%emt 0:30:51]} 24. Ra7 {[%emt 0:04:25]} Ra8 {[%emt 0:03:44]} 25. Rxa8+ {[%emt 0:00:08]} Bxa8 {[%emt 0:00:02]} 26. Bxc5 {[%emt 0:00:48]} bxc5 {[%emt 0:00:25]} 27. Nd5 {[%emt 0:00:44]} Bh6 {[%emt 0:03:07]} 28. Ne6 {[%emt 0:00:13]} c4 {[%emt 0:01:11]} 29. Kf1 {[%emt 0:00:44]} Kf7 {[%emt 0:02:43]} 30. Nec7 {[%emt 0:02:44]} Bc6 {[%emt 0:00:13]} 31. Ke2 {[%emt 0:00:37]} Ba4 {[%emt 0:01:30]} 32. Kd1 {[%emt 0:00:20]} Bc6 {[%emt 0:00:53]} 33. f3 {[%emt 0:00:50]} Bg5 {[%emt 0:01:03]} 34. g3 {[%emt 0:01:27]} h5 {[%emt 0:01:19]} 35. h4 {[%emt 0:01:00]} Bh6 {[%emt 0:03:01]} 36. Nb6 {[%emt 0:02:47]} c3 {[%emt 0:02:19]} 37. Nc4 {[%emt 0:01:05]} Kf6 {[%emt 0:00:45]} 38. Ke2 {[%emt 0:03:53]} Bf8 {[%emt 0:00:25]} 39. Kd3 {[%emt 0:00:18]} Bc5 {[%emt 0:00:21]} 40. Ne3 {[%emt 0:00:00]} Bd4 {[%emt 0:00:00]} 41. Ncd5+ {[%emt 0:02:50]} Ke6 {[%emt 0:10:00]} 42. Nxc3 {[%emt 0:00:55]} Bb7 {[%emt 0:00:02]} 43. Ncd5 {[%emt 0:01:13]} Ba6+ {[%emt 0:01:25]} 44. Kd2 {[%emt 0:02:52]} Kd6 {[%emt 0:01:35]} 45. c3 {[%emt 0:00:53]} Bc5 {[%emt 0:00:23]} 46. f4 {[%emt 0:01:50]} exf4 {[%emt 0:02:50]} 47. gxf4 {[%emt 0:01:00]} Bb7 {[%emt 0:04:32]} 48. Kd3 {[%emt 0:03:38]} Bc8 {[%emt 0:01:07]} 49. e5+ {[%emt 0:01:15]} Ke6 {[%emt 0:00:22]} 50. Ke4 {[%emt 0:01:58]} Bb7 {[%emt 0:01:15]} 51. c4 {[%emt 0:00:11]} Be7 {[%emt 0:00:45]} 52. f5+ {[%emt 0:00:21]} gxf5+ {[%emt 0:00:40]} 53. Nxf5 {[%emt 0:00:14]} Bd8 {[%emt 0:00:32]} 54. Nd4+ {[%emt 0:10:02]} Kf7 {[%emt 0:00:16]} 55. e6+ {[%emt 0:00:53]} Kg6 {[%emt 0:03:18]} 56. Nf3 {[%emt 0:00:18]} Be7 {[%emt 0:03:05]} 57. Ke5 {[%emt 0:02:02]} Ba3 {[%emt 0:00:12]} 58. Ke4 {[%emt 0:02:10]} Be7 {[%emt 0:01:11]} 59. Kf4 {[%emt 0:00:19]} Bd6+ {[%emt 0:07:32]} 60. Ne5+ {[%emt 0:00:09]} Kg7 {[%emt 0:00:06]} 61. Kf5 {[%emt 0:01:08]} Bc8 {[%emt 0:00:19]} 62. Nf6 {[%emt 0:01:50]} Kf8 {[%emt 0:02:32]} 63. Ng6+ {[%emt 0:00:18]} Kg7 {[%emt 0:00:07]} 64. Ne8+ {[%emt 0:00:08]} 1-0

[Event "XIX Najdorf Memorial 2019"]
[Site "Warsaw"]
[Date "2019.07.14"]
[Round "9.12"]
[White "Kanarek, Marcel"]
[Black "Krstulovic, Alex"]
[Result "1-0"]
[ECO "B15"]
[WhiteElo "2493"]
[BlackElo "2360"]
[Annotator "ChessBase"]
[PlyCount "39"]
[EventDate "2019.07.06"]
[EventType "swiss"]
[EventCountry "POL"]
[SourceTitle "playchess.com"]
[Source "ChessBase"]
[SourceQuality "1"]
[TimeControl "40/5400+30:1800+30"]

1. e4 {[%emt 0:02:29]} c6 {[%emt 0:00:00]} 2. d4 {[%emt 0:00:07]} d5 {[%emt 0:00:00]} 3. Nc3 {[%emt 0:00:03]} dxe4 {[%emt 0:00:00]} 4. Nxe4 {[%emt 0:00:02]} Nf6 {[%emt 0:00:00]} 5. Nxf6+ {[%emt 0:00:03]} exf6 {[%emt 0:00:06]} 6. c3 {[%emt 0:00:03]} Bd6 {[%emt 0:00:17]} 7. Bd3 {[%emt 0:00:02]} O-O {[%emt 0:00:10]} 8. Qc2 {[%emt 0:00:03]} Re8+ {[%emt 0:00:07]} 9. Ne2 {[%emt 0:00:03]} h5 {[%emt 0:00:07]} 10. O-O {[%emt 0:01:11]} h4 {[%emt 0:00:05]} 11. Nf4 {[%emt 0:02:06]} Bc7 {[%emt 0:35:18]} 12. Qd1 {[%emt 0:04:46]} Qd6 {[%emt 0:05:48]} 13. Qh5 {[%emt 0:04:33]} g5 {[%emt 0:07:39]} 14. g3 {[%emt 0:41:01]} Kf8 {[%emt 0:17:05]} 15. Bc4 {[%emt 0:07:59]} Be6 {[%emt 0:01:20]} 16. Bxe6 {[%emt 0:02:56]} fxe6 {[%emt 0:00:09]} 17. Qh7 {[%emt 0:04:22]} Re7 {[%emt 0:01:51]} 18. Ng6+ {[%emt 0:08:26]} Ke8 {[%emt 0:00:06]} 19. Qh8+ {[%emt 0:00:42]} Kd7 {[%emt 0:00:25]} 20. Qxf6 {[%emt 0:01:41]} 1-0

[Event "XIX Najdorf Memorial 2019"]
[Site "Warsaw"]
[Date "2019.07.14"]
[Round "9.12"]
[White "Goslawski, Michal"]
[Black "Malek, Daniel"]
[Result "0-1"]
[ECO "D02"]
[WhiteElo "2091"]
[BlackElo "2362"]
[Annotator "ChessBase"]
[PlyCount "142"]
[EventDate "2019.07.06"]
[EventType "swiss"]
[EventCountry "POL"]
[SourceTitle "playchess.com"]
[Source "ChessBase"]
[SourceQuality "1"]
[TimeControl "40/5400+30:1800+30"]

1. Nf3 {[%emt 0:00:00]} d5 {[%emt 0:00:00]} 2. d4 {[%emt 0:00:00]} Nf6 {[%emt 0:00:00]} 3. c4 {[%emt 0:00:00]} e6 {[%emt 0:00:00]} 4. g3 {[%emt 0:00:00]} Bb4+ {[%emt 0:00:00]} 5. Nbd2 {[%emt 0:00:00]} dxc4 {[%emt 0:00:06]} 6. Bg2 {[%emt 0:00:00]} b5 {[%emt 0:00:16]} 7. O-O {[%emt 0:00:24]} a5 {[%emt 0:00:05]} 8. a4 {[%emt 0:04:07]} c6 {[%emt 0:00:39]} 9. Qc2 {[%emt 0:01:40]} Bb7 {[%emt 0:06:42]} 10. b3 {[%emt 0:02:58]} cxb3 {[%emt 0:01:39]} 11. Nxb3 {[%emt 0:00:51]} Nbd7 {[%emt 0:01:55]} 12. Nc5 {[%emt 0:02:37]} Nxc5 {[%emt 0:10:06]} 13. dxc5 {[%emt 0:00:09]} Rc8 {[%emt 0:00:11]} 14. Bb2 {[%emt 0:01:09]} h6 {[%emt 0:06:35]} 15. Be5 {[%emt 0:01:19]} O-O {[%emt 0:06:49]} 16. Bd6 {[%emt 0:05:38]} Nd5 {[%emt 0:03:37]} 17. Ne5 {[%emt 0:04:58]} Bc3 {[%emt 0:10:22]} 18. Rab1 {[%emt 0:07:16]} Bxe5 {[%emt 0:03:42]} 19. Bxe5 {[%emt 0:00:06]} f6 {[%emt 0:00:23]} 20. Bd6 {[%emt 0:00:46]} b4 {[%emt 0:00:27]} 21. Bxf8 {[%emt 0:03:54]} Qxf8 {[%emt 0:00:09]} 22. Qc4 {[%emt 0:01:08]} Qe7 {[%emt 0:05:15]} 23. Rfc1 {[%emt 0:04:38]} f5 {[%emt 0:09:21]} 24. Rb3 {[%emt 0:02:00]} Ra8 {[%emt 0:00:51]} 25. e4 {[%emt 0:05:58]} Ba6 {[%emt 0:00:41]} 26. Qc2 {[%emt 0:01:31]} fxe4 {[%emt 0:00:06]} 27. Bxe4 {[%emt 0:02:14]} Rf8 {[%emt 0:03:48]} 28. Rf3 {[%emt 0:04:16]} Rxf3 {[%emt 0:03:14]} 29. Bxf3 {[%emt 0:00:06]} Nc3 {[%emt 0:00:31]} 30. Qb3 {[%emt 0:04:19]} Qf6 {[%emt 0:03:04]} 31. Kg2 {[%emt 0:02:53]} Nd5 {[%emt 0:02:03]} 32. Re1 {[%emt 0:01:54]} Kf7 {[%emt 0:03:14]} 33. Bg4 {[%emt 0:03:24]} Bc8 {[%emt 0:00:14]} 34. Qc4 {[%emt 0:03:31]} g6 {[%emt 0:02:11]} 35. Bf3 {[%emt 0:00:38]} h5 {[%emt 0:03:51]} 36. h4 {[%emt 0:02:21]} Kg7 {[%emt 0:01:15]} 37. Rd1 {[%emt 0:01:30]} Kf7 {[%emt 0:01:16]} 38. Be4 {[%emt 0:04:00]} Kg7 {[%emt 0:01:55]} 39. Rd3 {[%emt 0:01:04]} Qe5 {[%emt 0:00:45]} 40. Rf3 {[%emt 0:00:00]} Bd7 {[%emt 0:00:00]} 41. Bc2 {[%emt 0:05:04]} Ne7 {[%emt 0:04:54]} 42. Qd3 {[%emt 0:07:44]} Qd5 {[%emt 0:00:46]} 43. Qe3 {[%emt 0:01:19]} Nf5 {[%emt 0:04:27]} 44. Bxf5 {[%emt 0:02:37]} exf5 {[%emt 0:00:15]} 45. Kh2 {[%emt 0:00:08]} Be6 {[%emt 0:01:11]} 46. Rf4 {[%emt 0:00:48]} Kf6 {[%emt 0:00:50]} 47. Qc1 {[%emt 0:05:56]} Qe5 {[%emt 0:04:01]} 48. Rf3 {[%emt 0:04:39]} b3 {[%emt 0:00:05]} 49. Qg5+ {[%emt 0:02:53]} Kf7 {[%emt 0:02:33]} 50. Re3 {[%emt 0:00:41]} Qd4 {[%emt 0:05:13]} 51. Rxe6 {[%emt 0:09:07]} Kxe6 {[%emt 0:02:37]} 52. Qxg6+ {[%emt 0:00:08]} Kd5 {[%emt 0:02:49]} 53. Qf7+ {[%emt 0:00:36]} Kxc5 {[%emt 0:00:03]} 54. Qxb3 {[%emt 0:00:11]} Qxf2+ {[%emt 0:00:05]} 55. Kh3 {[%emt 0:03:40]} Qf1+ {[%emt 0:00:09]} 56. Kh2 {[%emt 0:00:11]} Qe2+ {[%emt 0:00:21]} 57. Kh3 {[%emt 0:01:49]} Qc4 {[%emt 0:01:48]} 58. Qa3+ {[%emt 0:00:30]} Kd5 {[%emt 0:00:41]} 59. Qf3+ {[%emt 0:01:08]} Qe4 {[%emt 0:00:20]} 60. Qb3+ {[%emt 0:00:41]} Kd4 {[%emt 0:00:44]} 61. Qb2+ {[%emt 0:01:00]} Kc4 {[%emt 0:00:14]} 62. Kh2 {[%emt 0:00:53]} Qf3 {[%emt 0:01:57]} 63. Qb7 {[%emt 0:07:43]} Kc3 {[%emt 0:02:07]} 64. Qb6 {[%emt 0:01:07]} Qd5 {[%emt 0:00:33]} 65. Qb7 {[%emt 0:01:06]} Qa2+ {[%emt 0:01:33]} 66. Kh3 {[%emt 0:00:41]} Qxa4 {[%emt 0:00:09]} 67. Qc7 {[%emt 0:00:26]} Qb5 {[%emt 0:02:12]} 68. Qg7+ {[%emt 0:00:30]} Kb3 {[%emt 0:00:13]} 69. Qf7+ {[%emt 0:01:25]} Qd5 {[%emt 0:00:09]} 70. Qb7+ {[%emt 0:00:09]} Ka2 {[%emt 0:00:26]} 71. Kh2 {[%emt 0:00:25]} a4 {[%emt 0:00:17]} 0-1

[Event "XIX Najdorf Memorial 2019"]
[Site "Warsaw"]
[Date "2019.07.14"]
[Round "9.13"]
[White "Kowalski, Igor"]
[Black "Popovic, Dusan"]
[Result "1/2-1/2"]
[ECO "E71"]
[WhiteElo "2320"]
[BlackElo "2487"]
[Annotator "ChessBase"]
[PlyCount "34"]
[EventDate "2019.07.06"]
[EventType "swiss"]
[EventCountry "POL"]
[SourceTitle "playchess.com"]
[Source "ChessBase"]
[SourceQuality "1"]
[TimeControl "40/5400+30:1800+30"]

1. d4 {[%emt 0:00:00]} Nf6 {[%emt 0:01:15]} 2. c4 {[%emt 0:00:00]} g6 {[%emt 0:00:15]} 3. Nc3 {[%emt 0:00:00]} Bg7 {[%emt 0:00:03]} 4. e4 {[%emt 0:00:00]} d6 {[%emt 0:00:04]} 5. h3 {[%emt 0:00:00]} O-O {[%emt 0:00:04]} 6. Be3 {[%emt 0:00:00]} Na6 {[%emt 0:01:26]} 7. g4 {[%emt 0:00:09]} c6 {[%emt 0:00:51]} 8. Bg2 {[%emt 0:00:41]} e5 {[%emt 0:00:37]} 9. d5 {[%emt 0:00:25]} cxd5 {[%emt 0:00:08]} 10. cxd5 {[%emt 0:00:05]} b5 {[%emt 0:00:11]} 11. a3 {[%emt 0:24:00]} b4 {[%emt 0:02:46]} 12. axb4 {[%emt 0:00:06]} Nxb4 {[%emt 0:00:04]} 13. Nge2 {[%emt 0:00:05]} a5 {[%emt 0:08:53]} 14. O-O {[%emt 0:00:29]} Ba6 {[%emt 0:05:59]} 15. Qd2 {[%emt 0:00:55]} Nd7 {[%emt 0:01:40]} 16. Ra3 {[%emt 0:03:20]} Nc5 {[%emt 0:03:16]} 17. Rfa1 {[%emt 0:00:27]} Nbd3 {[%emt 0:14:16]} 1/2-1/2

[Event "XIX Najdorf Memorial 2019"]
[Site "Warsaw"]
[Date "2019.07.14"]
[Round "9.13"]
[White "Zebracki, Tomasz"]
[Black "Jacobsen, Mikkel Manosri"]
[Result "1-0"]
[ECO "D01"]
[WhiteElo "2183"]
[BlackElo "2343"]
[Annotator "ChessBase"]
[PlyCount "61"]
[EventDate "2019.07.06"]
[EventType "swiss"]
[EventCountry "POL"]
[SourceTitle "playchess.com"]
[Source "ChessBase"]
[SourceQuality "1"]
[TimeControl "40/5400+30:1800+30"]

1. d4 {[%emt 0:00:00]} Nf6 {[%emt 0:00:00]} 2. Nc3 {[%emt 0:00:00]} d5 {[%emt 0:00:16]} 3. Bg5 {[%emt 0:00:00]} Nbd7 {[%emt 0:00:06]} 4. Qd3 {[%emt 0:01:02]} c6 {[%emt 0:01:05]} 5. Nf3 {[%emt 0:01:04]} g6 {[%emt 0:01:12]} 6. e4 {[%emt 0:01:46]} dxe4 {[%emt 0:00:23]} 7. Nxe4 {[%emt 0:00:11]} Bg7 {[%emt 0:00:13]} 8. O-O-O {[%emt 0:02:42]} h6 {[%emt 0:01:15]} 9. Nxf6+ {[%emt 0:10:25]} Nxf6 {[%emt 0:00:17]} 10. Bxf6 {[%emt 0:01:42]} Bxf6 {[%emt 0:03:16]} 11. Ne5 {[%emt 0:00:09]} Qa5 {[%emt 0:07:57]} 12. a3 {[%emt 0:04:48]} Be6 {[%emt 0:03:32]} 13. Qe3 {[%emt 0:01:33]} g5 {[%emt 0:05:59]} 14. Be2 {[%emt 0:08:00]} h5 {[%emt 0:03:00]} 15. Nd3 {[%emt 0:11:51]} b6 {[%emt 0:39:54]} 16. Bxh5 {[%emt 0:16:00]} O-O-O {[%emt 0:04:12]} 17. Qf3 {[%emt 0:03:17]} g4 {[%emt 0:02:12]} 18. Qxc6+ {[%emt 0:20:52]} Kb8 {[%emt 0:00:05]} 19. Bxf7 {[%emt 0:00:25]} Bxf7 {[%emt 0:00:39]} 20. Nb4 {[%emt 0:00:56]} Rd6 {[%emt 0:07:58]} 21. Qxd6+ {[%emt 0:00:44]} exd6 {[%emt 0:00:02]} 22. Nc6+ {[%emt 0:00:01]} Kc7 {[%emt 0:00:11]} 23. Nxa5 {[%emt 0:00:02]} bxa5 {[%emt 0:00:01]} 24. h3 {[%emt 0:03:37]} gxh3 {[%emt 0:02:31]} 25. Rxh3 {[%emt 0:00:01]} Rf8 {[%emt 0:00:02]} 26. f4 {[%emt 0:01:19]} Be6 {[%emt 0:01:07]} 27. Rh7+ {[%emt 0:01:55]} Kb6 {[%emt 0:00:03]} 28. Rh6 {[%emt 0:00:34]} Bf5 {[%emt 0:01:01]} 29. g3 {[%emt 0:00:59]} Kb5 {[%emt 0:01:58]} 30. Rh5 {[%emt 0:00:38]} Be7 {[%emt 0:01:03]} 31. g4 {[%emt 0:00:25]} 1-0

[Event "XIX Najdorf Memorial 2019"]
[Site "Warsaw"]
[Date "2019.07.14"]
[Round "9.14"]
[White "Jarmula, Lukasz"]
[Black "Mosesov, Danylo"]
[Result "1/2-1/2"]
[ECO "A10"]
[WhiteElo "2480"]
[BlackElo "2353"]
[Annotator "ChessBase"]
[PlyCount "60"]
[EventDate "2019.07.06"]
[EventType "swiss"]
[EventCountry "POL"]
[SourceTitle "playchess.com"]
[Source "ChessBase"]
[SourceQuality "1"]
[TimeControl "40/5400+30:1800+30"]

1. c4 {[%emt 0:00:00]} b6 {[%emt 0:00:00]} 2. Nc3 {[%emt 0:00:32]} Bb7 {[%emt 0:00:00]} 3. d4 {[%emt 0:01:51]} Nf6 {[%emt 0:00:00]} 4. Nf3 {[%emt 0:00:24]} e6 {[%emt 0:00:16]} 5. a3 {[%emt 0:00:24]} Ne4 {[%emt 0:00:12]} 6. Nxe4 {[%emt 0:04:32]} Bxe4 {[%emt 0:00:05]} 7. e3 {[%emt 0:00:13]} Be7 {[%emt 0:00:28]} 8. Bd3 {[%emt 0:00:06]} Bxd3 {[%emt 0:00:03]} 9. Qxd3 {[%emt 0:00:07]} d6 {[%emt 0:00:38]} 10. O-O {[%emt 0:01:54]} O-O {[%emt 0:00:56]} 11. e4 {[%emt 0:04:53]} Nd7 {[%emt 0:00:37]} 12. b4 {[%emt 0:01:15]} Bf6 {[%emt 0:03:49]} 13. Bb2 {[%emt 0:01:49]} g6 {[%emt 0:01:04]} 14. Bc3 {[%emt 0:06:11]} Qe7 {[%emt 0:02:49]} 15. e5 {[%emt 0:06:49]} Bg7 {[%emt 0:00:17]} 16. Qe4 {[%emt 0:02:59]} g5 {[%emt 0:16:44]} 17. Rfe1 {[%emt 0:03:17]} Rfe8 {[%emt 0:04:27]} 18. a4 {[%emt 0:08:39]} f5 {[%emt 0:08:01]} 19. exf6 {[%emt 0:05:52]} Nxf6 {[%emt 0:00:04]} 20. Qc6 {[%emt 0:00:16]} Nh5 {[%emt 0:00:59]} 21. g3 {[%emt 0:04:55]} h6 {[%emt 0:02:52]} 22. Re2 {[%emt 0:04:38]} Qf7 {[%emt 0:02:13]} 23. Rae1 {[%emt 0:00:41]} Rf8 {[%emt 0:01:06]} 24. Nd2 {[%emt 0:00:42]} Rae8 {[%emt 0:03:48]} 25. a5 {[%emt 0:06:08]} Nf6 {[%emt 0:08:10]} 26. a6 {[%emt 0:02:19]} Re7 {[%emt 0:02:22]} 27. b5 {[%emt 0:01:04]} Qh5 {[%emt 0:04:22]} 28. f3 {[%emt 0:03:26]} Qe8 {[%emt 0:11:18]} 29. Qxe8 {[%emt 0:01:59]} Rfxe8 {[%emt 0:00:06]} 30. Ne4 {[%emt 0:08:51]} Kf7 {[%emt 0:00:37]} 1/2-1/2

[Event "XIX Najdorf Memorial 2019"]
[Site "Warsaw"]
[Date "2019.07.14"]
[Round "9.14"]
[White "Kucza, Karol"]
[Black "Zochowski, Kacper"]
[Result "1/2-1/2"]
[ECO "B07"]
[WhiteElo "2315"]
[BlackElo "2251"]
[Annotator "ChessBase"]
[PlyCount "100"]
[EventDate "2019.07.06"]
[EventType "swiss"]
[EventCountry "POL"]
[SourceTitle "playchess.com"]
[Source "ChessBase"]
[SourceQuality "1"]
[TimeControl "40/5400+30:1800+30"]

1. e4 {[%emt 0:00:00]} d6 {[%emt 0:06:57]} 2. d4 {[%emt 0:00:00]} Nf6 {[%emt 0:00:05]} 3. Nc3 {[%emt 0:00:00]} e5 {[%emt 0:00:03]} 4. dxe5 {[%emt 0:00:00]} dxe5 {[%emt 0:00:03]} 5. Qxd8+ {[%emt 0:00:08]} Kxd8 {[%emt 0:00:06]} 6. Bc4 {[%emt 0:00:09]} Be6 {[%emt 0:00:02]} 7. Bxe6 {[%emt 0:00:08]} fxe6 {[%emt 0:00:03]} 8. f3 {[%emt 0:00:10]} Bd6 {[%emt 0:00:03]} 9. Be3 {[%emt 0:00:09]} Nc6 {[%emt 0:00:03]} 10. O-O-O {[%emt 0:01:50]} Ke7 {[%emt 0:01:16]} 11. Nh3 {[%emt 0:02:17]} a6 {[%emt 0:00:11]} 12. Nf2 {[%emt 0:00:12]} Nd7 {[%emt 0:01:56]} 13. Kb1 {[%emt 0:05:15]} h6 {[%emt 0:00:34]} 14. Ne2 {[%emt 0:05:22]} b5 {[%emt 0:11:37]} 15. Nd3 {[%emt 0:04:37]} Na5 {[%emt 0:05:04]} 16. h4 {[%emt 0:20:33]} c5 {[%emt 0:02:23]} 17. h5 {[%emt 0:01:31]} c4 {[%emt 0:14:39]} 18. Nf2 {[%emt 0:00:26]} Rac8 {[%emt 0:08:43]} 19. Ng4 {[%emt 0:04:05]} Nb7 {[%emt 0:07:32]} 20. Bf2 {[%emt 0:01:02]} Rhe8 {[%emt 0:15:27]} 21. Bh4+ {[%emt 0:09:19]} Kf8 {[%emt 0:00:09]} 22. Rd2 {[%emt 0:04:35]} Rc6 {[%emt 0:01:04]} 23. Rhd1 {[%emt 0:00:35]} b4 {[%emt 0:02:03]} 24. f4 {[%emt 0:15:56]} c3 {[%emt 0:05:37]} 25. Rd3 {[%emt 0:02:20]} exf4 {[%emt 0:04:32]} 26. Nxf4 {[%emt 0:12:01]} Kg8 {[%emt 0:04:51]} 27. Ng6 {[%emt 0:03:22]} Ndc5 {[%emt 0:00:20]} 28. Rd4 {[%emt 0:00:39]} cxb2 {[%emt 0:00:56]} 29. e5 {[%emt 0:01:25]} Bf8 {[%emt 0:01:04]} 30. Rxb4 {[%emt 0:01:13]} Rec8 {[%emt 0:00:26]} 31. Rf1 {[%emt 0:01:39]} R6c7 {[%emt 0:00:19]} 32. Rxf8+ {[%emt 0:02:36]} Rxf8 {[%emt 0:00:04]} 33. Nxf8 {[%emt 0:00:03]} Kxf8 {[%emt 0:00:13]} 34. Rf4+ {[%emt 0:00:37]} Ke8 {[%emt 0:00:39]} 35. Kxb2 {[%emt 0:00:14]} Rd7 {[%emt 0:00:49]} 36. Be1 {[%emt 0:01:24]} Rd1 {[%emt 0:00:28]} 37. Bb4 {[%emt 0:00:35]} Na4+ {[%emt 0:00:37]} 38. Kb3 {[%emt 0:00:12]} Nb6 {[%emt 0:00:07]} 39. Rf8+ {[%emt 0:00:48]} Kd7 {[%emt 0:00:00]} 40. c3 {[%emt 0:00:00]} a5 {[%emt 0:00:00]} 41. Rf7+ {[%emt 0:06:48]} Kc6 {[%emt 0:04:04]} 42. Bf8 {[%emt 0:00:12]} Rd2 {[%emt 0:03:47]} 43. a4 {[%emt 0:07:02]} Rxg2 {[%emt 0:07:55]} 44. Rxg7 {[%emt 0:03:06]} Nd7 {[%emt 0:01:34]} 45. Nf6 {[%emt 0:00:47]} Nbc5+ {[%emt 0:08:17]} 46. Ka3 {[%emt 0:00:06]} Rc2 {[%emt 0:01:14]} 47. Bxc5 {[%emt 0:04:16]} Nxc5 {[%emt 0:00:04]} 48. Rg3 {[%emt 0:01:06]} Re2 {[%emt 0:01:54]} 49. Ng4 {[%emt 0:04:39]} Re4 {[%emt 0:02:02]} 50. Nxh6 {[%emt 0:01:42]} Kd5 1/2-1/2